Cogmind - Beta 14 @@@ ROGUE MODE // 2025.01.11 @ 23:11:15 Player: Lako Result: Self-destructed Performance ------------- Evolutions (1) 500 Regions Visited (3) 600 Robots Destroyed (14) 70 Value Destroyed (427) 427 Prototype IDs (0) 0 Alien Tech Used (0) 0 Bonus (0) 0 TOTAL SCORE: 1597 Bonus ------- None Cogmind --------- Core Integrity 322/400 Matter 1/300 Energy 250/250 System Corruption 0% Temperature Cool (9) Movement Rolling (100) Location -9/Materials Parts ------- > --- POWER (1) -------- Ion Engine > --- PROPULSION (3) --- Compact Wheel Compact Wheel > --- UTILITY (3) ------ ECM Suite > --- WEAPON (2) ------- Heavy Assault Rifle Heavy Assault Rifle > --- INVENTORY (5) ---- Light Ion Engine Flight Unit Light Assault Rifle Peak State ------------ > --- POWER ------------ Ion Engine > --- PROPULSION ------- Compact Wheel Compact Wheel > --- UTILITY ---------- ECM Suite Weapon Shielding > --- WEAPON ----------- Heavy Assault Rifle Rocket Launcher > --- INVENTORY -------- Light Ion Engine Compact Wheel EM Pulse Gun Light Assault Rifle Heavy Assault Rifle [Rating: 9] Favorites ----------- Power Ion Engine Engine Ion Engine Propulsion Compact Wheel Wheel Compact Wheel Utility Weapon Shielding Device ECM Suite Protection Weapon Shielding Weapon Heavy Assault Rifle Energy Gun EM Pulse Gun Ballistic Gun Heavy Assault Rifle Launcher Grenade Launcher Build | -11 -10 -10 -9 ------- Run | Yrd Mat Min Mat Slots Evolved 2 | . . . 2 Power . | . . . . Propulsion 1 | . . . 1 Utility 1 | . . . 1 Weapon . | . . . . Parts Attached 13 | 5 4 2 2 Power 1 | 1 . . . Engine 1 | 1 . . . Core . | . . . . Reactor . | . . . . Propulsion 4 | 2 . 1 1 Treads . | . . . . Leg . | . . . . Wheel 4 | 2 . 1 1 Hover . | . . . . Flight . | . . . . Utility 2 | . 2 . . Device 1 | . 1 . . Storage . | . . . . Processor . | . . . . Hackware . | . . . . Protection 1 | . 1 . . Artifact . | . . . . Weapon 6 | 2 2 1 1 Energy Gun 1 | 1 . . . Energy Cannon . | . . . . Ballistic Gun 3 | 1 1 . 1 Ballistic Cannon . | . . . . Launcher 2 | . 1 1 . Special Weapon . | . . . . Impact Weapon . | . . . . Slashing Weapon . | . . . . Piercing Weapon . | . . . . Special Melee Weapon . | . . . . Unidentified Prototypes . | . . . . Parts Lost 3 | . . . 3 Power . | . . . . Propulsion 1 | . . . 1 Utility 1 | . . . 1 Weapon 1 | . . . 1 Highest Loss Streak 3 | . . . 3 To Critical Strikes . | . . . . Average Slot Usage (%) 91 | . 90 100 69 Engine 13 | . 14 14 11 Wheel 26 | . 28 28 19 Device 10 | . 7 14 11 Protection 12 | . 11 14 6 Ballistic Gun 14 | . 14 14 16 Launcher 12 | . 13 14 4 Peak Build Rating 9 | 5 8 9 9 Average Rating 7 | 3 6 8 8 On Entrance 5 | . 5 8 9 Naked Turns . | . . . . Heaviest Build 15 | 8 14 15 15 Greatest Support 32 | 32 32 32 32 Greatest Overweight (x) . | . . . . Average Overweight (x) . | . . . . Largest Inventory Capacity 5 | 5 5 5 5 Average Capacity 5 | 5 5 5 5 Most Carried 5 | 2 5 5 5 Average Carried 4 | . 4 4 4 Final Capacity 5 | 5 5 5 5 Final Carried 5 | 1 5 5 3 Class Distribution -------------------- 100% | Mutant Dominant Class ---------------- Mutant | -10/Materials Mutant | -10/Mines Mutant | -9/Materials Resources | -11 -10 -10 -9 ----------- Run | Yrd Mat Min Mat Matter Collected 314 | 250 . 64 . Remotely . | . . . . Salvage Created 373 | . 74 134 165 Parts 32 | . 5 13 14 Haulers Intercepted . | . . . . Recyclers Shooed . | . . . . Parts Field Recycled . | . . . . Retrieved Matter . | . . . . Parts Self-Destructed . | . . . . Prevented . | . . . . Kills | -11 -10 -10 -9 ------- Run | Yrd Mat Min Mat Combat Hostiles Destroyed 13 | . 2 7 4 Guns 7 | . . 4 3 AOE 6 | . 2 3 1 Classes Destroyed 4 | . 1 1 2 Tunneler 1 | . . . 1 Swarmer 3 | . . 3 . Grunt 9 | . 2 4 3 Sentry 1 | . . . 1 Best Kill Streak 4 | . 2 4 3 Combat Bots Only 4 | . 2 4 2 Max Kills in Single Turn 2 | . 1 2 1 Gunslinging . | . . . . Exploded 2 | . 1 2 1 Melee . | . . . . Uniques/NPCs Destroyed . | . . . . Combat | -11 -10 -10 -9 -------- Run | Yrd Mat Min Mat Hostile Shots Fired 64 | . 2 29 33 Missed 20 | . 2 7 11 Damage Taken 628 | . . 306 322 Core 185 | . . 107 78 Absorbed by Shields . | . . . . Redirected to Shielding 53 | . . 38 15 Core Remaining (%) 78 | 100 . 57 . Volleys Fired 45 | . 3 24 18 Largest 2 | . 2 2 2 Hottest 56 | . 50 56 56 Shots Fired 70 | . 5 31 34 Gun 58 | . 3 24 31 Cannon . | . . . . Launcher 12 | . 2 7 3 Special . | . . . . Kinetic 58 | . 3 24 31 Thermal . | . . . . Explosive 12 | . 2 7 3 Electromagnetic . | . . . . Robot Hit Streak 8 | . 3 7 8 Robot Miss Streak 3 | . 1 3 2 Penetration Max . | . . . . Secondary Targets . | . . . . Shots Hit Robots 47 | . 4 18 25 Core Hits 28 | . 7 12 9 Critical Kills . | . . . . Critical Parts Destroyed . | . . . . Critical Strikes . | . . . . Melee Attacks . | . . . . Impact . | . . . . Slashing . | . . . . Piercing . | . . . . Sneak Attacks . | . . . . Combat Hostiles . | . . . . Follow-up Attacks . | . . . . Damage Inflicted 1421 | . 158 688 575 Guns 607 | . 14 251 342 Cannons . | . . . . Explosions 814 | . 144 437 233 Melee . | . . . . Ramming . | . . . . Kinetic 607 | . 14 251 342 Thermal . | . . . . Explosive 814 | . 144 437 233 Electromagnetic . | . . . . Impact . | . . . . Slashing . | . . . . Piercing . | . . . . Highest Corruption . | . . . . Average Corruption . | . . . . Corruption Purged . | . . . . Corruption Blocked . | . . . . Overload Shots . | . . . . Overflow Damage . | . . . . Projectiles . | . . . . Explosions . | . . . . Melee . | . . . . Knockbacks . | . . . . Impact . | . . . . Kinetic . | . . . . Secondary . | . . . . Self-Inflicted Damage 6 | . . 6 . Shots 2 | . . 2 . Rammed . | . . . . Targets Rammed . | . . . . Kicked . | . . . . Crushed . | . . . . Highest Temperature 21 | . 10 21 19 Average Temperature 8 | . 7 11 5 Received Heat Transfer 315 | . . 156 159 Siege Activations . | . . . . Robots Corrupted . | . . . . Combat Hostiles . | . . . . Parts Fried . | . . . . Impact Corruptions . | . . . . Robots Melted . | . . . . Combat Hostiles . | . . . . Parts Melted . | . . . . Heat Transferred . | . . . . Parts Sabotaged . | . . . . Parts Stolen . | . . . . Parts Stripped . | . . . . Power Chain Reactions . | . . . . Alert | -11 -10 -10 -9 ------- Run | Yrd Mat Min Mat Peak Influence 260 | . 107 260 193 Initial 101 | . . 41 101 Average 94 | . 25 178 149 Maximum Alert Level 1 | . . 1 . Low Security (%) 87 | 100 100 66 100 Level 1 12 | . . 33 . Level 2 . | . . . . Level 3 . | . . . . Level 4 . | . . . . Level 5 . | . . . . High Security . | . . . . Max Security . | . . . . Squads Dispatched 1 | . 1 . . Investigation . | . . . . Extermination . | . . . . Reinforcement 1 | . 1 . . Assault . | . . . . Garrison . | . . . . Intercept . | . . . . Searches Triggered . | . . . . Construction Impeded . | . . . . Haulers Reinforced . | . . . . Active Scanning Responses . | . . . . Cargo Convoy Interrupts . | . . . . Stealth | -11 -10 -10 -9 --------- Run | Yrd Mat Min Mat Distress Signals 2 | . . . 2 Communications Jammed . | . . . . Distress Signals . | . . . . Times Spotted 26 | . 5 10 11 Peak Tracking Total 5 | . 2 3 5 Tactical Retreats 1 | . . 1 . Traps | -11 -10 -10 -9 ------- Run | Yrd Mat Min Mat Traps Triggered . | . . . . Indirectly . | . . . . Trap Hack Attempts . | . . . . Triggered . | . . . . Disarmed . | . . . . Reprogrammed 9 | . 9 . . Reused . | . . . . Traps Extracted . | . . . . Installed . | . . . . Triggered . | . . . . Machines | -11 -10 -10 -9 ---------- Run | Yrd Mat Min Mat Machines Disabled . | . . . . Max in Single Turn . | . . . . Machines Repaired . | . . . . Machines Dismantled . | . . . . Machines Sabotaged . | . . . . Overloaded Fab Kills . | . . . . Hacking | -11 -10 -10 -9 --------- Run | Yrd Mat Min Mat Machines Accessed 3 | . 3 . . Terminals 3 | . 3 . . Fabricators . | . . . . Repair Stations . | . . . . Recycling Units . | . . . . Scanalyzers . | . . . . Garrison Access . | . . . . Total Hacks 12 | . 12 . . Successful 5 | . 5 . . Failed 7 | . 7 . . Catastrophic 2 | . 2 . . Database Lockouts . | . . . . Manual 12 | . 12 . . Terminals 12 | . 12 . . Fabricators . | . . . . Repair Stations . | . . . . Recycling Units . | . . . . Scanalyzers . | . . . . Garrison Access . | . . . . Terminal Hacks 5 | . 5 . . Reprogram Traps 3 | . 3 . . Recall Investigation 1 | . 1 . . Zone Layout 1 | . 1 . . Fabricator Hacks . | . . . . Repair Station Hacks . | . . . . Recycling Unit Hacks . | . . . . Scanalyzer . | . . . . Garrison Access Hacks . | . . . . Unauthorized Hacks . | . . . . Terminals . | . . . . Fabricators . | . . . . Repair Stations . | . . . . Recycling Units . | . . . . Scanalyzers . | . . . . Garrison Access . | . . . . Data Cores Recovered . | . . . . Used . | . . . . Hacking Detections 3 | . 3 . . Full Trace Events . | . . . . Feedback Events . | . . . . Feedback Blocked . | . . . . Robot Schematics Acquired . | . . . . Robots Built . | . . . . Authchips . | . . . . Time . | . . . . Total Robot Build Rating . | . . . . Part Schematics Acquired . | . . . . Parts Built . | . . . . Authchips . | . . . . Time . | . . . . Total Part Build Rating . | . . . . Parts Repaired . | . . . . Time . | . . . . Parts Recycled . | . . . . Recycled Matter . | . . . . Retrieved Matter . | . . . . Retrieved Components . | . . . . Parts Scanalyzed . | . . . . Part Schematics Acquired . | . . . . Parts Damaged . | . . . . Bothacking | -11 -10 -10 -9 ------------ Run | Yrd Mat Min Mat Used RIF Installer . | . . . . Robots Hacked . | . . . . Non-combat . | . . . . Combat . | . . . . Robot Hacks Applied . | . . . . Relay Couplers Released . | . . . . Fabnet Peak Effective % . | . . . . Robots Rewired . | . . . . Allies Hacked . | . . . . Hacks Repelled . | . . . . Allies | -11 -10 -10 -9 -------- Run | Yrd Mat Min Mat Total Allies . | . . . . Largest Group . | . . . . Highest-Rated Group . | . . . . Highest-Rated Ally . | . . . . Total Orders . | . . . . Ally Attacks . | . . . . Total Damage . | . . . . Kills . | . . . . Allies Corrupted . | . . . . Allies Melted . | . . . . Intel | -11 -10 -10 -9 ------- Run | Yrd Mat Min Mat Robot Analysis Total . | . . . . Derelict Logs Recovered . | . . . . Drone Launches . | . . . . Drone Recoveries . | . . . . Exploration | -11 -10 -10 -9 ------------- Run | Yrd Mat Min Mat Turns Passed 858 | 64 376 318 100 Spaces Moved 704 | 59 344 255 46 Core 7 | 7 . . . Treads . | . . . . Legs . | . . . . Wheels 697 | 52 344 255 46 Hover . | . . . . Flight . | . . . . Fastest Speed 50 | 50 100 100 100 Average Speed 99 | 94 100 100 100 Slowest Speed 100 | 100 100 100 100 Overloaded Moves . | . . . . Propulsion Burnouts . | . . . . Robots Hopped . | . . . . Cave-ins Triggered . | . . . . Exploration Rate (%) 20 | 3 47 25 6 Regions Visited 3 Branch Regions 1 Pre-discovered Areas . | . . . . Known Exits Taken . | . . . . Unknown Exits Taken 3 | 1 1 1 . Scrap Searched . | . . . . Spaces Dug . | . . . . Terrain Destroyed 107 | . 8 71 28 Melee . | . . . . Projectile . | . . . . AOE 107 | . 8 71 28 Terrain Rammed . | . . . . Walls Destroyed . | . . . . Machines Disabled . | . . . . Actions | -11 -10 -10 -9 --------- Run | Yrd Mat Min Mat Total 790 | 65 371 288 66 Wait 17 | . 12 5 . Move 701 | 58 343 254 46 Hop . | . . . . Pick Up 9 | 2 6 1 . Fast Attach 6 | 4 2 . . Attach 3 | 1 . . 2 Detach . | . . . . Swap 4 | . 2 2 . Drop 5 | . 3 2 . Fire 45 | . 3 24 18 Melee . | . . . . Ram . | . . . . Kick . | . . . . Crush . | . . . . Escape Stasis . | . . . . Rewire . | . . . . Trap . | . . . . Miscellaneous . | . . . . Route ------- -11/Scrapyard -10/Materials (discovered 2 exits: [*Mat] / [*Min]) -10/Mines -9/Materials History --------- Turn | Location | Event 22 | -11/Scrapyard | Discovered new exit (range 15) 65 | -11/Scrapyard | Entered Materials 224 | -10/Materials | Discovered new exit (range 15) 304 | -10/Materials | Build established: Mutant 400 | -10/Materials | Discovered new exit (range 7) 441 | -10/Materials | Entered Mines 448 | -10/Mines | Received a Rocket Launcher from a helpful Derelict 480 | -10/Mines | Met a Derelict bent on vengeance 753 | -10/Mines | Discovered new exit (range 4) 759 | -10/Mines | Entered Materials 759 | -9/Materials | Evolved 2 slots: Propulsion x1, Utility x1 849 | -9/Materials | Lost 3 parts (1n1u1w) 859 | -9/Materials | Self-destructed Last Messages --------------- 00833_ U-05 Engineer builds a Wall. 00834_ U-05 Engineer lays Concrete. 00836_ The unstable cave ceiling collapses. 00837_ U-05 Engineer builds a Wall. 00839_ G-34 Mercenary destroyed. 00840_ U-05 Engineer lays Concrete. 00841_ U-05 Engineer builds a Wall. 00841_ U-05 Engineer lays Concrete. 00843_ U-05 Engineer builds a Door. 00845_ M-13 Machinist repairs Welding Torch. 00846_ U-05 Engineer builds a Wall. 00847_ U-05 Engineer lays Concrete. 00850_ U-05 Engineer builds a Wall. 00851_ U-05 Engineer lays Concrete. 00852_ U-05 Engineer builds a Wall. 00854_ U-05 Engineer lays Concrete. [Achievement: Oops] 00855_ U-05 Engineer lays Concrete. 00857_ U-05 Engineer builds a Wall. 00859_ S-10 Pest destroyed. Map ----- +----------------------------------------------------+ | ?????????????????????????????????????????????????? | | ?????????????????????????????????????????????????? | | ?????????????????????????????????????????????????? | | ?????????????????????????????????????????????????? | | ?????????????????????????????????????????????????? | | ?????????????????????????????????????????????????? | | ?????????????????????????????????????????????????? | | ?????????????????????????????????????????????????? | | ?????????????????????????????????????????????????? | | ?????????????????????????????????????????????????? | | ?????????????????????????????????????????????????? | | ?????????????????????????????????????????????????? | | ?????????????????????????????????????????????????? | | ?????????????????????????????????????????????????? | | ?????????????????????????????????????????????????? | | ?????????????????????????????????????????????????? | | ?????????????????????????????????????????????????? | | ??????????????????????????########???????????????? | | ??????????????????????????# #???????????????? | | ??????????????????????????# #???????????????? | | ???????????????????#??????# """ #???????????????? | | ??????????????????## #????# """ ###?????????????? | | ?????????????????## ! ??# """ + ??????????????? | | ????????????????## # ??? ????????????????? | | ??????????????? #### ##+######/##############????? | | ?????????? ==%*%=!u@/ g #????? | | ?????????? w m %[! * = #????? | | ?????????? = u * =ss #????? | | ??????????? ## ####### ! ####/########## #????? | | ????????????????#### !|###??? ???????# #????? | | ???????????????????#####?????? #?????# #????? | | ??????????????????????????????"" #????## ##???? | | ??????????????????????????????"" #????# ##### | | ??????????????????????????????"" #????# | | ??????????????????????????????? #????# | | ?????????????????????????????????##????# | | ???????????????????????????????????????# ##### | | ???????????????????????????????????????#######???? | | ?????????????????????????????????????????????????? | | ?????????????????????????????????????????????????? | | ?????????????????????????????????????????????????? | | | | | | | | | | | | | | | | | | | +----------------------------------------------------+ Best States ------------- Heat Dissipation 28 Energy Generation 10 Energy Capacity 250 Matter Stores 300 Matter Capacity 300 Sight Range 16 Terrain Scan Density 10 ECM Strength 1 Weapon Shielding 33 Evasion (%) 40 Item Schematics ----------------- None Robot Schematics ------------------ None Fabricated ------------ Nothing Alien Tech Used ----------------- None Achievements -------------- Oops root@ Challenges ------------ None Game ------ Seed StorageMicroWeb Manual? 0 Play Time 00:12:34 Cumulative 11.3 hours Start 2025.01.11 @ 22:59:47 End 2025.01.11 @ 23:11:15 Sessions 1 Manual Loads 0 Difficulty Rogue Special Mode None Game No. 16 Rogue 16 Adventurer 0 Explorer 0 Win Type - Total 0 Types 0/0/0/0/0/0/0/0/0 Lore% 9 Gallery% 15 Achievement% 16 Wizard Run 0 Options --------- Layout 1 ASCII 0 Keyboard 1 Movement Arrows Keybinds 0 Fullscreen 1 Font 32/SmallcapsGlow Map View 50x35 Zoom Use 0% Tactical HUD 1 Map Filters NONE Filters NONE Steam 1 RUN: 21fcc6a7-206a-45e9-9593-02431d0f777d